Cogmind - Beta 13 @@@ ROGUE MODE // 2024.04.08 @ 03:07:30 Player: f_ Result: Destroyed self with Grenade Launcher Performance ------------- Evolutions (0) 0 Regions Visited (2) 400 Robots Destroyed (13) 65 Value Destroyed (292) 292 Prototype IDs (0) 0 Alien Tech Used (0) 0 Bonus (0) 0 TOTAL SCORE: 757 Bonus ------- None Cogmind --------- Core Integrity 0/250 Matter 253/300 Energy 125/125 System Corruption 0% Temperature Cool (0) Movement Treading (160) Location -10/Mines Parts ------- > --- POWER (1) -------- Light Ion Engine > --- PROPULSION (2) --- Light Treads > --- UTILITY (2) ------ Heat Sink Small Storage Unit > --- WEAPON (2) ------- Grenade Launcher > --- INVENTORY (8) ---- Ion Engine Particle Gun Peak State ------------ > --- POWER ------------ Light Nuclear Core > --- PROPULSION ------- Aluminum Leg Aluminum Leg > --- UTILITY ---------- Small Storage Unit Sensor Array > --- WEAPON ----------- Medium Laser Particle Gun > --- INVENTORY -------- Ion Engine Light Treads Heat Sink Particle Gun Grenade Launcher [Rating: 10] Favorites ----------- Power Light Nuclear Core Engine Ion Engine Power Core Light Nuclear Core Propulsion Aluminum Leg Treads Light Treads Leg Aluminum Leg Wheel Compact Wheel Utility Small Storage Unit Device Sensor Array Storage Small Storage Unit Weapon Light Assault Rifle Energy Gun Medium Laser Ballistic Gun Light Assault Rifle Launcher Grenade Launcher Build | -11 -10 -10 ------- Run | Yrd Mat Min Slots Evolved . | . . . Power . | . . . Propulsion . | . . . Utility . | . . . Weapon . | . . . Parts Attached 17 | 6 2 9 Power 3 | 1 1 1 Engine 2 | 1 . 1 Core 1 | . 1 . Reactor . | . . . Propulsion 6 | 2 . 4 Treads 3 | 1 . 2 Leg 2 | . . 2 Wheel 1 | 1 . . Hover . | . . . Flight . | . . . Utility 3 | 1 . 2 Device 2 | . . 2 Storage 1 | 1 . . Processor . | . . . Hackware . | . . . Protection . | . . . Artifact . | . . . Weapon 5 | 2 1 2 Energy Gun 3 | 1 1 1 Energy Cannon . | . . . Ballistic Gun 1 | 1 . . Ballistic Cannon . | . . . Launcher 1 | . . 1 Special Weapon . | . . . Impact Weapon . | . . . Slashing Weapon . | . . . Piercing Weapon . | . . . Special Melee Weapon . | . . . Unidentified Prototypes . | . . . Parts Lost 9 | . 1 8 Power 1 | . . 1 Propulsion 3 | . . 3 Utility 1 | . . 1 Weapon 4 | . 1 3 Highest Loss Streak 5 | . 1 5 To Critical Strikes . | . . . Average Slot Usage (%) 81 | . 82 79 Engine 4 | . 8 2 Core 7 | . 5 9 Treads 8 | . 14 3 Leg 10 | . . 17 Wheel 6 | . 14 1 Device 4 | . . 7 Storage 14 | . 14 14 Energy Gun 15 | . 11 17 Ballistic Gun 6 | . 14 . Launcher 2 | . . 4 Naked Turns . | . . . Heaviest Build 16 | 13 13 16 Greatest Support 20 | 20 20 20 Greatest Overweight (x) . | . . . Average Overweight (x) . | . . . Largest Inventory Capacity 8 | 8 8 8 Average Capacity 7 | 7 8 8 Most Carried 5 | 2 5 5 Average Carried 3 | 1 3 4 Final Capacity 8 | 8 8 8 Final Carried 4 | 2 4 2 Class Distribution -------------------- 67% | Mutant 32% | Scavenger-Mutant Dominant Class ---------------- Mutant | -10/Materials Scavenger-Mutant | -10/Mines Resources | -11 -10 -10 ----------- Run | Yrd Mat Min Matter Collected 366 | 85 113 168 Remotely . | . . . Salvage Created 309 | . 113 196 Parts 21 | . 4 17 Haulers Intercepted . | . . . Recyclers Shooed 2 | . . 2 Parts Field Recycled . | . . . Retrieved Matter . | . . . Parts Self-Destructed . | . . . Prevented . | . . . Kills | -11 -10 -10 ------- Run | Yrd Mat Min Combat Hostiles Destroyed 12 | . 2 10 Guns 9 | . 2 7 AOE 3 | . . 3 Classes Destroyed 3 | . 2 1 Operator 1 | . 1 . Swarmer 7 | . . 7 Grunt 5 | . 2 3 Best Kill Streak 4 | . 2 4 Combat Bots Only 4 | . 2 4 Max Kills in Single Turn 2 | . 1 2 Gunslinging . | . . . Exploded 2 | . . 2 Melee . | . . . Uniques/NPCs Destroyed . | . . . Combat | -11 -10 -10 -------- Run | Yrd Mat Min Hostile Shots Fired 111 | . 40 71 Missed 30 | . 10 20 Damage Taken 982 | . 381 601 Core 251 | . 83 168 Absorbed by Shields . | . . . Core Remaining (%) 100 | 100 . . Volleys Fired 51 | . 18 33 Largest 2 | . 2 2 Hottest 115 | . 70 115 Shots Fired 80 | . 31 49 Gun 78 | . 31 47 Cannon . | . . . Launcher 2 | . . 2 Special . | . . . Kinetic 19 | . 18 1 Thermal 52 | . 6 46 Explosive 2 | . . 2 Electromagnetic 7 | . 7 . Robot Hit Streak 7 | . 7 5 Robot Miss Streak 3 | . 2 3 Penetration Max . | . . . Secondary Targets . | . . . Shots Hit Robots 52 | . 23 29 Core Hits 24 | . 9 15 Critical Kills . | . . . Critical Parts Destroyed . | . . . Critical Strikes 5 | . 2 3 Burn 5 | . 2 3 Melee Attacks . | . . . Impact . | . . . Slashing . | . . . Piercing . | . . . Sneak Attacks . | . . . Combat Hostiles . | . . . Follow-up Attacks . | . . . Damage Inflicted 966 | . 226 740 Guns 646 | . 222 424 Cannons . | . . . Explosions 310 | . . 310 Melee . | . . . Ramming 10 | . 4 6 Kinetic 116 | . 107 9 Thermal 464 | . 49 415 Explosive 310 | . . 310 Electromagnetic 66 | . 66 . Impact . | . . . Slashing . | . . . Piercing . | . . . Highest Corruption . | . . . Average Corruption . | . . . Corruption Purged . | . . . Corruption Blocked . | . . . Overload Shots . | . . . Overflow Damage 19 | . . 19 Projectiles . | . . . Explosions 19 | . . 19 Melee . | . . . Knockbacks . | . . . Impact . | . . . Kinetic . | . . . Secondary . | . . . Self-Inflicted Damage 51 | . . 51 Shots 2 | . . 2 Rammed 4 | . 4 . Targets Rammed 5 | . 4 1 Kicked 1 | . . 1 Crushed . | . . . Highest Temperature 530 | . 197 530 Average Temperature 162 | . 72 199 Received Heat Transfer 396 | . 231 165 Effects 13 | . . 13 Energy Bleed 3 | . . 3 Interference 4 | . . 4 Matter Decay 1 | . . 1 Short Circuit 2 | . . 2 Damage (major) 3 | . . 3 Siege Activations . | . . . Robots Corrupted . | . . . Combat Hostiles . | . . . Parts Fried . | . . . Impact Corruptions . | . . . Robots Melted . | . . . Combat Hostiles . | . . . Parts Melted . | . . . Heat Transferred 1628 | . 296 1332 Parts Sabotaged . | . . . Parts Stolen . | . . . Parts Stripped . | . . . Power Chain Reactions . | . . . Alert | -11 -10 -10 ------- Run | Yrd Mat Min Peak Influence 210 | . 96 210 Initial 37 | . . 37 Average 79 | . 34 133 Maximum Alert Level 1 | . . 1 Low Security (%) 89 | 100 100 77 Level 1 10 | . . 22 Level 2 . | . . . Level 3 . | . . . Level 4 . | . . . Level 5 . | . . . High Security . | . . . Max Security . | . . . Squads Dispatched 1 | . 1 . Investigation 1 | . 1 . Extermination . | . . . Reinforcement . | . . . Assault . | . . . Garrison . | . . . Intercept . | . . . Searches Triggered . | . . . Construction Impeded . | . . . Haulers Reinforced . | . . . Active Scanning Responses . | . . . Cargo Convoy Interrupts . | . . . Stealth | -11 -10 -10 --------- Run | Yrd Mat Min Distress Signals 1 | . 1 . Communications Jammed . | . . . Distress Signals . | . . . Times Spotted 26 | . 13 13 Peak Tracking Total 8 | . 8 5 Tactical Retreats 1 | . . 1 Traps | -11 -10 -10 ------- Run | Yrd Mat Min Traps Triggered . | . . . Indirectly . | . . . Trap Hack Attempts . | . . . Triggered . | . . . Disarmed . | . . . Reprogrammed . | . . . Reused . | . . . Traps Extracted . | . . . Installed . | . . . Triggered . | . . . Machines | -11 -10 -10 ---------- Run | Yrd Mat Min Machines Disabled 1 | . . 1 Max in Single Turn 1 | . . 1 Machines Repaired . | . . . Machines Dismantled . | . . . Machines Sabotaged . | . . . Overloaded Fab Kills . | . . . Hacking | -11 -10 -10 --------- Run | Yrd Mat Min Machines Accessed 2 | . 2 . Terminals 2 | . 2 . Fabricators . | . . . Repair Stations . | . . . Recycling Units . | . . . Scanalyzers . | . . . Garrison Access . | . . . Total Hacks 6 | . 6 . Successful 2 | . 2 . Failed 4 | . 4 . Catastrophic 1 | . 1 . Database Lockouts . | . . . Manual 6 | . 6 . Terminals 6 | . 6 . Fabricators . | . . . Repair Stations . | . . . Recycling Units . | . . . Scanalyzers . | . . . Garrison Access . | . . . Terminal Hacks 1 | . 1 . Terminal Index 1 | . 1 . Fabricator Hacks . | . . . Repair Station Hacks . | . . . Recycling Unit Hacks . | . . . Scanalyzer . | . . . Garrison Access Hacks . | . . . Unauthorized Hacks 1 | . 1 . Terminals 1 | . 1 . Operators 1 | . 1 . Fabricators . | . . . Repair Stations . | . . . Recycling Units . | . . . Scanalyzers . | . . . Garrison Access . | . . . Data Cores Recovered . | . . . Used . | . . . Hacking Detections 2 | . 2 . Full Trace Events 1 | . 1 . Feedback Events . | . . . Feedback Blocked . | . . . Robot Schematics Acquired . | . . . Robots Built . | . . . Authchips . | . . . Time . | . . . Total Robot Build Rating . | . . . Part Schematics Acquired . | . . . Parts Built . | . . . Authchips . | . . . Time . | . . . Total Part Build Rating . | . . . Parts Repaired . | . . . Time . | . . . Parts Recycled . | . . . Recycled Matter . | . . . Retrieved Matter . | . . . Retrieved Components . | . . . Parts Scanalyzed . | . . . Part Schematics Acquired . | . . . Parts Damaged . | . . . Bothacking | -11 -10 -10 ------------ Run | Yrd Mat Min Used RIF Installer . | . . . Robots Hacked . | . . . Non-combat . | . . . Combat . | . . . Robot Hacks Applied . | . . . Relay Couplers Released . | . . . Fabnet Peak Effective % . | . . . Robots Rewired . | . . . Allies Hacked . | . . . Hacks Repelled . | . . . Allies | -11 -10 -10 -------- Run | Yrd Mat Min Total Allies . | . . . Largest Group . | . . . Highest-Rated Group . | . . . Highest-Rated Ally . | . . . Total Orders . | . . . Ally Attacks . | . . . Total Damage . | . . . Kills . | . . . Allies Corrupted . | . . . Allies Melted . | . . . Intel | -11 -10 -10 ------- Run | Yrd Mat Min Robot Analysis Total . | . . . Derelict Logs Recovered . | . . . Drone Launches . | . . . Drone Recoveries . | . . . Exploration | -11 -10 -10 ------------- Run | Yrd Mat Min Turns Passed 512 | 66 192 254 Spaces Moved 246 | 37 105 104 Core 1 | 1 . . Treads 94 | 32 30 32 Legs 69 | . . 69 Wheels 82 | 4 75 3 Hover . | . . . Flight . | . . . Fastest Speed 50 | 50 100 100 Average Speed 128 | 150 117 131 Slowest Speed 160 | 160 160 160 Overloaded Moves . | . . . Propulsion Burnouts . | . . . Robots Hopped . | . . . Cave-ins Triggered . | . . . Exploration Rate (%) 19 | 4 31 24 Regions Visited 2 Branch Regions 1 Pre-discovered Areas . | . . . Known Exits Taken . | . . . Unknown Exits Taken 2 | 1 1 . Scrap Searched 1 | . . 1 Spaces Dug . | . . . Terrain Destroyed 11 | . . 11 Melee . | . . . Projectile . | . . . AOE 11 | . . 11 Terrain Rammed . | . . . Walls Destroyed . | . . . Machines Disabled . | . . . Actions | -11 -10 -10 --------- Run | Yrd Mat Min Total 359 | 44 143 172 Wait 35 | . 13 22 Move 244 | 36 104 104 Hop . | . . . Pick Up 5 | 2 2 1 Fast Attach 11 | 6 . 5 Attach 5 | . 1 4 Detach 1 | . . 1 Swap 1 | . 1 . Drop 1 | . . 1 Fire 51 | . 18 33 Melee . | . . . Ram . | . . . Kick 1 | . . 1 Crush 4 | . 4 . Escape Stasis . | . . . Rewire . | . . . Trap . | . . . Miscellaneous . | . . . Route ------- -11/Scrapyard -10/Materials -10/Mines (discovered 1 exit: [*Mat]) History --------- Turn | Location | Event 6 | -11/Scrapyard | Discovered new exit (range 16) 67 | -11/Scrapyard | Entered Materials 249 | -10/Materials | Discovered new exit (range 10) 259 | -10/Materials | Entered Mines 304 | -10/Mines | Lost 3 parts (2n1w) 352 | -10/Mines | Discovered new exit (range 8) 416 | -10/Mines | Core integrity fell below 50% 435 | -10/Mines | Core integrity fell below 20% 475 | -10/Mines | Lost 5 parts (1p1n1u2w) 513 | -10/Mines | Destroyed self with Grenade Launcher Last Messages --------------- 00464_ Dropped Broken Aluminum Leg. 00464_ U-05 Engineer lays Concrete. 00465_ U-05 Engineer builds a Wall. 00465_ Acquired 48 matter. 00465_ U-05 Engineer lays Concrete. 00468_ Acquired Lgt. Ion Engine. 00469_ U-05 Engineer lays Concrete. 00471_ U-05 Engineer builds a Wall. 00472_ U-05 Engineer lays Concrete. 00473_ Acquired 12 matter. 00473_ U-05 Engineer builds a Wall. 00476_ U-05 Engineer lays Concrete. 00480_ U-05 Engineer builds a Wall. 00481_ U-05 Engineer lays Concrete. 00482_ U-05 Engineer builds a Wall. 00484_ U-05 Engineer lays Concrete. 00513_ Destroyed Lgt. Ion Engine. 00513_ S-10 Pest destroyed. 00513_ Destroyed Lgt. Ion Engine. 00513_ Seismic Survey Station disabled. Map ----- +----------------------------------------------------+ | ?????????????????????????????????????????????????? | | ?????????????????????????????????????????????????? | | ?????????????????????????????????????????????????? | | ?????????????????????????????????????????????????? | | ?????????????????????????????????????????????????? | | ?????????????????????????????????????????????????? | | ?????????????????????????????????????????????????? | | ?????????????????????????????????????????????????? | | ?????????????????????????????????????????????????? | | ?????????????????????????????????????????????????? | | ?????????????????????????????????????????????????? | | ?????????????????????????????????????????????????? | | ?????????????????????????????????????????????????? | | ?????????????????????????????????????????????????? | | ?????????????????????????????????????????????????? | | ?????????????????????????????????????????????????? | | ?????????????????????????????????????????????????? | | ??????????????????????????????##?????????????????? | | #####???????????????????????? #?????????????????? | | # ###?????????????????????" #?????????????????? | | < =#?????????????????????" #?????????????????? | | % ##??????########?????? #?????????????????? | | # ==##???### ## ##?????s ??????????????????? | | ## ##### ##???s% #???????????????????? | | ## #### #???????????????????? | | ## @ ????????????????????? | | ### ## #### #????????????????????? | | ??###### ##### #??? #???????????????????? | | ???????### ##???## #???? #???????????????????? | | ?????????####?????# #???? ##???????????????????? | | ?????????????????? #????#????????????????????? | | ????????????????? #?????????????????????????? | | ???????????????? ##?????????????????????????? | | ??????????????? ##??????????????????????????? | | ?????????????? ##???????????????????????????? | | ????????????? ##????????????????????????????? | | ????????????# ##??????????????????????????????? | | ?????????????# #????????????????????????????????? | | ??????????????##?????????????????????????????????? | | ?????????????????????????????????????????????????? | | ?????????????????????????????????????????????????? | | ?????????????????????????????????????????????????? | | ?????????????????????????????????????????????????? | | ?????????????????????????????????????????????????? | | ?????????????????????????????????????????????????? | | ?????????????????????????????????????????????????? | | ?????????????????????????????????????????????????? | | ?????????????????????????????????????????????????? | | ?????????????????????????????????????????????????? | | ?????????????????????????????????????????????????? | +----------------------------------------------------+ Best States ------------- Heat Dissipation 35 Energy Generation 14 Energy Capacity 250 Matter Stores 300 Matter Capacity 300 Sight Range 16 Robot Scan Range 14 Terrain Scan Density 10 Evasion (%) 55 Recoil Reduction 1 Item Schematics ----------------- None Robot Schematics ------------------ None Fabricated ------------ Nothing Alien Tech Used ----------------- None Achievements -------------- None Challenges ------------ None Game ------ Seed AccelerationUltimateWarhead Manual? 0 Play Time 00:15:47 Cumulative 170.2 hours Start 2024.04.07 @ 22:05:01 End 2024.04.08 @ 03:07:30 Sessions 3 Manual Loads 0 Difficulty Rogue Special Mode None Game No. 148 Rogue 143 Adventurer 0 Explorer 5 Win Type - Total 5 Types 2/0/1/2/0/0/0/0/0 Lore% 52 Gallery% 61 Achievement% 48 Wizard Run 0 Options --------- Layout 1 ASCII 0 Keyboard 0 Movement Mouse Keybinds 0 Fullscreen 2 Font 24/Tamsyn Map View 50x35 Zoom Use 0% Tactical HUD 1 Map Filters NONE Filters NONE Steam 1 RUN: 78e31587-2457-4a76-ab72-4698797abbcd